[Event "Late-Titled-Tuesday-Blitz-May-07-2024"]
[Site "Chess.com"]
[Date "2024.05.07"]
[Round "9"]
[White "Firouzja2003"]
[Black "Hikaru"]
[Result "1/2-1/2"]
[WhiteElo "3192"]
[BlackElo "3227"]
[TimeControl "180+1"]
[EndTime "15:47:47 PDT"]
[Termination "Game drawn - insufficient material"]

1. e4 {[%clk 0:02:59.7]} 1... e5 {[%clk 0:03:00.3]} 2. Nf3 {[%clk 0:03:00.1]}
2... Nc6 {[%clk 0:03:01]} 3. Bb5 {[%clk 0:03:00]} 3... Nf6 {[%clk 0:03:00.8]} 4.
d3 {[%clk 0:03:00.5]} 4... Bc5 {[%clk 0:03:00.6]} 5. O-O {[%clk 0:02:52.5]} 5...
Nd4 {[%clk 0:02:59.8]} 6. Nxd4 {[%clk 0:02:52.4]} 6... Bxd4 {[%clk 0:03:00.7]}
7. c3 {[%clk 0:02:52.4]} 7... Bb6 {[%clk 0:02:58.5]} 8. Nd2 {[%clk 0:02:52]}
8... c6 {[%clk 0:02:58.6]} 9. Ba4 {[%clk 0:02:44.5]} 9... Bc7 {[%clk 0:02:55.7]}
10. d4 {[%clk 0:02:34.3]} 10... d6 {[%clk 0:02:35.7]} 11. Re1 {[%clk 0:02:30.8]}
11... O-O {[%clk 0:02:34.3]} 12. Nf3 {[%clk 0:02:31.5]} 12... h6 {[%clk
0:02:33.5]} 13. h3 {[%clk 0:02:30.9]} 13... Re8 {[%clk 0:02:31.3]} 14. Bc2
{[%clk 0:02:23.4]} 14... b5 {[%clk 0:02:23.5]} 15. a4 {[%clk 0:02:20.5]} 15...
a6 {[%clk 0:02:19.9]} 16. Be3 {[%clk 0:02:13.3]} 16... Be6 {[%clk 0:02:01.4]}
17. Qc1 {[%clk 0:01:58.1]} 17... Nd7 {[%clk 0:01:52]} 18. Rd1 {[%clk 0:01:51.7]}
18... Qf6 {[%clk 0:01:50.7]} 19. Qd2 {[%clk 0:01:31]} 19... Qg6 {[%clk 0:01:23]}
20. d5 {[%clk 0:00:34.3]} 20... Bxh3 {[%clk 0:01:13.2]} 21. Nh4 {[%clk
0:00:34.7]} 21... Qg4 {[%clk 0:01:02.1]} 22. dxc6 {[%clk 0:00:34.3]} 22... Nf6
{[%clk 0:00:48.1]} 23. Kh2 {[%clk 0:00:21.4]} 23... Qxh4 {[%clk 0:00:44.4]} 24.
gxh3 {[%clk 0:00:21.7]} 24... Nxe4 {[%clk 0:00:34.9]} 25. Qe2 {[%clk 0:00:22.5]}
25... d5 {[%clk 0:00:33.3]} 26. Qg4 {[%clk 0:00:05.7]} 26... Qxg4 {[%clk
0:00:26.4]} 27. hxg4 {[%clk 0:00:06.6]} 27... Nf6 {[%clk 0:00:26.3]} 28. Kh3
{[%clk 0:00:07.2]} 28... bxa4 {[%clk 0:00:20.9]} 29. Bxa4 {[%clk 0:00:05.9]}
29... Re6 {[%clk 0:00:20.5]} 30. b4 {[%clk 0:00:06.2]} 30... Rb8 {[%clk
0:00:20.3]} 31. f3 {[%clk 0:00:05.5]} 31... e4 {[%clk 0:00:19.3]} 32. f4 {[%clk
0:00:05.9]} 32... h5 {[%clk 0:00:19.9]} 33. gxh5 {[%clk 0:00:05.2]} 33... Nxh5
{[%clk 0:00:20.5]} 34. f5 {[%clk 0:00:05.8]} 34... Rf6 {[%clk 0:00:21]} 35. Kg4
{[%clk 0:00:05.6]} 35... g6 {[%clk 0:00:15.9]} 36. Rxd5 {[%clk 0:00:05.8]} 36...
Ng7 {[%clk 0:00:14.7]} 37. fxg6 {[%clk 0:00:05.7]} 37... Rxg6+ {[%clk 0:00:14]}
38. Rg5 {[%clk 0:00:06.2]} 38... f5+ {[%clk 0:00:13.7]} 39. Kh3 {[%clk 0:00:07]}
39... Rxg5 {[%clk 0:00:13.9]} 40. Bxg5 {[%clk 0:00:06.7]} 40... Kf7 {[%clk
0:00:13.3]} 41. Rd1 {[%clk 0:00:06]} 41... Kg6 {[%clk 0:00:07.5]} 42. Be7 {[%clk
0:00:05.4]} 42... Rh8+ {[%clk 0:00:07.9]} 43. Kg2 {[%clk 0:00:05.9]} 43... Ne6
{[%clk 0:00:08.1]} 44. Bd6 {[%clk 0:00:03.1]} 44... f4 {[%clk 0:00:06.2]} 45.
Bb3 {[%clk 0:00:02.7]} 45... Rd8 {[%clk 0:00:03.6]} 46. Bxe6 {[%clk 0:00:02.4]}
46... Rxd6 {[%clk 0:00:03.2]} 47. Rxd6 {[%clk 0:00:02.7]} 47... Bxd6 {[%clk
0:00:04.1]} 48. Bc8 {[%clk 0:00:03]} 48... Kg5 {[%clk 0:00:04.5]} 49. Bxa6
{[%clk 0:00:02.9]} 49... f3+ {[%clk 0:00:05.1]} 50. Kf1 {[%clk 0:00:02.7]} 50...
e3 {[%clk 0:00:04.3]} 51. Bd3 {[%clk 0:00:02.6]} 51... Kf4 {[%clk 0:00:04.8]}
52. c4 {[%clk 0:00:02]} 52... Ke5 {[%clk 0:00:03.7]} 53. c5 {[%clk 0:00:02.5]}
53... Bc7 {[%clk 0:00:04.1]} 54. b5 {[%clk 0:00:01.6]} 54... Kd5 {[%clk
0:00:04]} 55. b6 {[%clk 0:00:01.3]} 55... e2+ {[%clk 0:00:04.9]} 56. Bxe2 {[%clk
0:00:01.3]} 56... fxe2+ {[%clk 0:00:05.8]} 57. Kxe2 {[%clk 0:00:01.9]} 57...
Bxb6 {[%clk 0:00:05.7]} 58. cxb6 {[%clk 0:00:01.9]} 58... Kxc6 {[%clk
0:00:06.3]} 59. Kd3 {[%clk 0:00:02.5]} 59... Kb7 {[%clk 0:00:06]} 60. Ke3 {[%clk
0:00:01.9]} 60... Kxb6 {[%clk 0:00:06.9]} 1/2-1/2

[Event "Late-Titled-Tuesday-Blitz-May-07-2024"]
[Site "Chess.com"]
[Date "2024.05.07"]
[Round "9"]
[White "TigrVShlyape"]
[Black "MarkusRagger"]
[Result "0-1"]
[WhiteElo "2954"]
[BlackElo "2828"]
[TimeControl "180+1"]
[EndTime "15:47:48 PDT"]
[Termination "MarkusRagger won on time"]

1. d4 {[%clk 0:03:00.4]} 1... Nf6 {[%clk 0:02:58.9]} 2. Bf4 {[%clk 0:02:59.4]}
2... g6 {[%clk 0:02:57.4]} 3. c3 {[%clk 0:02:58.9]} 3... Bg7 {[%clk 0:02:56.6]}
4. Nf3 {[%clk 0:02:58.4]} 4... d6 {[%clk 0:02:56.8]} 5. h3 {[%clk 0:02:58.5]}
5... O-O {[%clk 0:02:56]} 6. Nbd2 {[%clk 0:02:57.8]} 6... Nbd7 {[%clk
0:02:53.5]} 7. e4 {[%clk 0:02:57.6]} 7... b6 {[%clk 0:02:43.9]} 8. Bd3 {[%clk
0:02:55.2]} 8... e5 {[%clk 0:02:39.3]} 9. Bh2 {[%clk 0:02:43]} 9... Bb7 {[%clk
0:02:36.2]} 10. O-O {[%clk 0:02:41.6]} 10... Re8 {[%clk 0:02:36.1]} 11. Re1
{[%clk 0:02:40.1]} 11... Nh5 {[%clk 0:02:29.8]} 12. a4 {[%clk 0:02:36.4]} 12...
a5 {[%clk 0:02:28.5]} 13. Bb5 {[%clk 0:02:34]} 13... Qe7 {[%clk 0:02:14.6]} 14.
Qb3 {[%clk 0:02:05.7]} 14... Red8 {[%clk 0:02:06.4]} 15. Rad1 {[%clk 0:01:54.9]}
15... Nf8 {[%clk 0:01:54]} 16. d5 {[%clk 0:01:52.4]} 16... Bh6 {[%clk
0:01:49.4]} 17. Nc4 {[%clk 0:01:48.8]} 17... Bf4 {[%clk 0:01:42.9]} 18. g3
{[%clk 0:01:46.8]} 18... Bh6 {[%clk 0:01:42.9]} 19. Qc2 {[%clk 0:01:46.4]} 19...
Bc8 {[%clk 0:01:42.6]} 20. Kg2 {[%clk 0:01:41.3]} 20... Qf6 {[%clk 0:01:14.8]}
21. Qe2 {[%clk 0:01:38.6]} 21... Nd7 {[%clk 0:01:09.4]} 22. b4 {[%clk
0:01:34.5]} 22... Rf8 {[%clk 0:01:02.9]} 23. Bg1 {[%clk 0:01:20.3]} 23... Nb8
{[%clk 0:00:54.6]} 24. Nh2 {[%clk 0:01:18.7]} 24... Qg5 {[%clk 0:00:52.5]} 25.
Ng4 {[%clk 0:01:14.2]} 25... f5 {[%clk 0:00:52]} 26. Nxh6+ {[%clk 0:01:10.6]}
26... Qxh6 {[%clk 0:00:51.9]} 27. exf5 {[%clk 0:01:03.9]} 27... Bxf5 {[%clk
0:00:49.9]} 28. h4 {[%clk 0:00:51.5]} 28... Nf6 {[%clk 0:00:41.7]} 29. Qd2
{[%clk 0:00:49.5]} 29... Qh5 {[%clk 0:00:38.1]} 30. f3 {[%clk 0:00:48.4]} 30...
e4 {[%clk 0:00:32.9]} 31. fxe4 {[%clk 0:00:43]} 31... Bxe4+ {[%clk 0:00:32.1]}
32. Rxe4 {[%clk 0:00:42.6]} 32... Nxe4 {[%clk 0:00:33]} 33. Qe1 {[%clk
0:00:39.1]} 33... Qf3+ {[%clk 0:00:29.1]} 34. Kh2 {[%clk 0:00:39]} 34... axb4
{[%clk 0:00:23.8]} 35. cxb4 {[%clk 0:00:32.2]} 35... Na6 {[%clk 0:00:21.2]} 36.
Nd2 {[%clk 0:00:29.2]} 36... Nxd2 {[%clk 0:00:18.4]} 37. Qe6+ {[%clk 0:00:28.4]}
37... Qf7 {[%clk 0:00:18.1]} 38. Rxd2 {[%clk 0:00:28.8]} 38... Qxe6 {[%clk
0:00:17.4]} 39. dxe6 {[%clk 0:00:28.5]} 39... Nxb4 {[%clk 0:00:18]} 40. Bd4
{[%clk 0:00:23.5]} 40... c6 {[%clk 0:00:16]} 41. Bc3 {[%clk 0:00:18.9]} 41...
cxb5 {[%clk 0:00:15.7]} 42. Bxb4 {[%clk 0:00:19.5]} 42... Rfe8 {[%clk
0:00:16.1]} 43. axb5 {[%clk 0:00:19.1]} 43... Rxe6 {[%clk 0:00:15.4]} 44. Kh3
{[%clk 0:00:16.8]} 44... Kf7 {[%clk 0:00:11.6]} 45. Bxd6 {[%clk 0:00:15.4]}
45... Rd8 {[%clk 0:00:11.6]} 46. Rf2+ {[%clk 0:00:15.8]} 46... Rf6 {[%clk
0:00:12.2]} 47. Rxf6+ {[%clk 0:00:16.1]} 47... Kxf6 {[%clk 0:00:13.1]} 48. Bc7
{[%clk 0:00:16.6]} 48... Rd5 {[%clk 0:00:13.4]} 49. Bxb6 {[%clk 0:00:16.9]}
49... Rxb5 {[%clk 0:00:14.1]} 50. Be3 {[%clk 0:00:17.2]} 50... Kf5 {[%clk
0:00:14.2]} 51. Bh6 {[%clk 0:00:16.1]} 51... Rb3 {[%clk 0:00:14.7]} 52. Bg5
{[%clk 0:00:15.2]} 52... Ke4 {[%clk 0:00:14.5]} 53. Kg4 {[%clk 0:00:15.3]} 53...
Rb4 {[%clk 0:00:13.6]} 54. Bh6 {[%clk 0:00:15.1]} 54... Rb5 {[%clk 0:00:07.8]}
55. Bf4 {[%clk 0:00:13.9]} 55... Kd5 {[%clk 0:00:07.8]} 56. Kg5 {[%clk
0:00:13.8]} 56... Ke6+ {[%clk 0:00:07.5]} 57. Kh6 {[%clk 0:00:13.9]} 57... Rh5+
{[%clk 0:00:07.8]} 58. Kg7 {[%clk 0:00:13.8]} 58... Kf5 {[%clk 0:00:08.5]} 59.
Bd6 {[%clk 0:00:12.9]} 59... Kg4 {[%clk 0:00:08.5]} 60. Bc7 {[%clk 0:00:12.5]}
60... Rc5 {[%clk 0:00:08.5]} 61. Bb8 {[%clk 0:00:12.4]} 61... Rb5 {[%clk
0:00:08.4]} 62. Bd6 {[%clk 0:00:12.3]} 62... h5 {[%clk 0:00:08]} 63. Bf4 {[%clk
0:00:10.4]} 63... Kf5 {[%clk 0:00:08.1]} 64. Kh6 {[%clk 0:00:09.9]} 64... Rb4
{[%clk 0:00:08.6]} 65. Bd6 {[%clk 0:00:09.6]} 65... Rb6 {[%clk 0:00:08.5]} 66.
Bf4 {[%clk 0:00:09.7]} 66... g5+ {[%clk 0:00:08.9]} 0-1

[Event "Late-Titled-Tuesday-Blitz-May-07-2024"]
[Site "Chess.com"]
[Date "2024.05.07"]
[Round "9"]
[White "Arek_pacitan"]
[Black "Zhigalko_Sergei"]
[Result "1-0"]
[WhiteElo "2769"]
[BlackElo "2877"]
[TimeControl "180+1"]
[EndTime "15:47:48 PDT"]
[Termination "Arek_pacitan won by resignation"]

1. d4 {[%clk 0:03:00.9]} 1... Nf6 {[%clk 0:02:59.5]} 2. c4 {[%clk 0:02:59.9]}
2... e6 {[%clk 0:02:59.9]} 3. Nc3 {[%clk 0:02:59.7]} 3... Bb4 {[%clk 0:02:59.8]}
4. Qc2 {[%clk 0:02:59.3]} 4... O-O {[%clk 0:02:58.9]} 5. Nf3 {[%clk 0:02:59.5]}
5... d6 {[%clk 0:02:53.9]} 6. g3 {[%clk 0:02:58.2]} 6... Re8 {[%clk 0:02:42.3]}
7. Bg2 {[%clk 0:02:57.1]} 7... e5 {[%clk 0:02:42.1]} 8. O-O {[%clk 0:02:50.2]}
8... e4 {[%clk 0:02:33]} 9. Ng5 {[%clk 0:02:46.1]} 9... Bxc3 {[%clk 0:02:31.5]}
10. Qxc3 {[%clk 0:02:39.3]} 10... h6 {[%clk 0:02:23.4]} 11. Nh3 {[%clk
0:02:38.9]} 11... Bf5 {[%clk 0:01:58.1]} 12. f3 {[%clk 0:02:38.5]} 12... Nbd7
{[%clk 0:01:40.8]} 13. Nf2 {[%clk 0:02:33.3]} 13... c6 {[%clk 0:01:36.6]} 14.
Bf4 {[%clk 0:02:31.3]} 14... d5 {[%clk 0:01:35.6]} 15. c5 {[%clk 0:02:30.7]}
15... Nf8 {[%clk 0:01:17.5]} 16. Be5 {[%clk 0:02:15.9]} 16... exf3 {[%clk
0:01:04.2]} 17. exf3 {[%clk 0:02:02.1]} 17... N6d7 {[%clk 0:00:59.7]} 18. Bd6
{[%clk 0:01:58.1]} 18... Qf6 {[%clk 0:00:43]} 19. Rfe1 {[%clk 0:01:34.2]} 19...
Ne6 {[%clk 0:00:37.5]} 20. Rad1 {[%clk 0:01:26.7]} 20... b6 {[%clk 0:00:22.1]}
21. cxb6 {[%clk 0:01:09.9]} 21... axb6 {[%clk 0:00:20.9]} 22. Qxc6 {[%clk
0:00:59.8]} 22... Nxd4 {[%clk 0:00:19.7]} 23. Qxd5 {[%clk 0:00:50.6]} 23...
Rxe1+ {[%clk 0:00:18.5]} 24. Rxe1 {[%clk 0:00:51.4]} 24... Rc8 {[%clk
0:00:11.4]} 25. Be7 {[%clk 0:00:46]} 25... Be6 {[%clk 0:00:02]} 26. Bxf6 {[%clk
0:00:44]} 26... Bxd5 {[%clk 0:00:00.4]} 27. Bxd4 {[%clk 0:00:44.6]} 27... Bxa2
{[%clk 0:00:00.8]} 28. Bh3 {[%clk 0:00:41.9]} 28... Rd8 {[%clk 0:00:00.7]} 29.
Ra1 {[%clk 0:00:32.1]} 29... Be6 {[%clk 0:00:00.9]} 30. Bxe6 {[%clk 0:00:30.4]}
30... fxe6 {[%clk 0:00:01.8]} 31. Ne4 {[%clk 0:00:30.2]} 31... e5 {[%clk
0:00:02]} 32. Be3 {[%clk 0:00:30.3]} 32... Nf8 {[%clk 0:00:02.7]} 33. Kf2 {[%clk
0:00:29.7]} 33... Rd3 {[%clk 0:00:02.8]} 34. Ra3 {[%clk 0:00:27.4]} 34... Rd1
{[%clk 0:00:03.4]} 35. Bxb6 {[%clk 0:00:26.5]} 35... Rh1 {[%clk 0:00:02.8]} 36.
Kg2 {[%clk 0:00:26.3]} 36... Rb1 {[%clk 0:00:03.7]} 37. Rb3 {[%clk 0:00:26.5]}
37... Ne6 {[%clk 0:00:04.3]} 38. Be3 {[%clk 0:00:27]} 38... Re1 {[%clk
0:00:04.2]} 39. Bf2 {[%clk 0:00:27]} 39... Re2 {[%clk 0:00:04.6]} 40. Rb8+
{[%clk 0:00:27.2]} 40... Kh7 {[%clk 0:00:04.8]} 41. b4 {[%clk 0:00:27.8]} 41...
Rb2 {[%clk 0:00:04.9]} 42. b5 {[%clk 0:00:28]} 42... Nd4 {[%clk 0:00:05.3]} 43.
b6 {[%clk 0:00:28.2]} 43... Nf5 {[%clk 0:00:05.1]} 44. Kf1 {[%clk 0:00:23.2]}
44... Ne7 {[%clk 0:00:04]} 45. Nd6 {[%clk 0:00:20.8]} 45... Nd5 {[%clk
0:00:02.2]} 46. b7 {[%clk 0:00:20.6]} 46... Rb1+ {[%clk 0:00:00.7]} 47. Kg2
{[%clk 0:00:20.2]} 47... Rb2 {[%clk 0:00:01.6]} 48. Kf1 {[%clk 0:00:17.2]} 48...
Rb1+ {[%clk 0:00:01.6]} 49. Ke2 {[%clk 0:00:17.9]} 49... Rb2+ {[%clk 0:00:01.9]}
50. Ke1 {[%clk 0:00:18]} 50... Nc3 {[%clk 0:00:01.8]} 51. Rc8 {[%clk 0:00:15]}
51... Rb1+ {[%clk 0:00:01.6]} 52. Kd2 {[%clk 0:00:15.5]} 52... Rxb7 {[%clk
0:00:01.9]} 53. Nxb7 {[%clk 0:00:15]} 53... Nd5 {[%clk 0:00:02.8]} 54. Nd6
{[%clk 0:00:14.8]} 54... Nf6 {[%clk 0:00:02.7]} 55. Nf7 {[%clk 0:00:15.1]} 55...
e4 {[%clk 0:00:03.6]} 56. Rh8+ {[%clk 0:00:14.2]} 56... Kg6 {[%clk 0:00:03.9]}
57. Ne5+ {[%clk 0:00:15.1]} 57... Kf5 {[%clk 0:00:04.6]} 58. f4 {[%clk 0:00:16]}
58... g5 {[%clk 0:00:03.8]} 59. Be3 {[%clk 0:00:15.2]} 59... g4 {[%clk
0:00:03.7]} 60. Rf8 {[%clk 0:00:14.2]} 60... h5 {[%clk 0:00:04.4]} 61. Rxf6+
{[%clk 0:00:14.7]} 61... Kxf6 {[%clk 0:00:05.3]} 62. Kc3 {[%clk 0:00:15.5]}
62... Kf5 {[%clk 0:00:06.2]} 63. Kd4 {[%clk 0:00:16.4]} 63... h4 {[%clk
0:00:07.1]} 64. gxh4 {[%clk 0:00:15.7]} 64... g3 {[%clk 0:00:07.5]} 65. hxg3
{[%clk 0:00:16.6]} 65... Ke6 {[%clk 0:00:07.9]} 66. g4 {[%clk 0:00:17.2]} 1-0

[Event "Late-Titled-Tuesday-Blitz-May-07-2024"]
[Site "Chess.com"]
[Date "2024.05.07"]
[Round "9"]
[White "N_Mullodzhanov"]
[Black "ToddBryant"]
[Result "1-0"]
[WhiteElo "2560"]
[BlackElo "2407"]
[TimeControl "180+1"]
[EndTime "15:47:53 PDT"]
[Termination "N_Mullodzhanov won by checkmate"]

1. e4 {[%clk 0:03:00.9]} 1... c5 {[%clk 0:02:58.5]} 2. c3 {[%clk 0:02:58.6]}
2... Nf6 {[%clk 0:02:58.4]} 3. e5 {[%clk 0:02:58.9]} 3... Nd5 {[%clk 0:02:59]}
4. Nf3 {[%clk 0:02:59.6]} 4... d6 {[%clk 0:02:54.1]} 5. exd6 {[%clk 0:03:00.3]}
5... Qxd6 {[%clk 0:02:52.4]} 6. d4 {[%clk 0:03:00.6]} 6... cxd4 {[%clk
0:02:49.2]} 7. Nxd4 {[%clk 0:03:01.5]} 7... Nc6 {[%clk 0:02:49.2]} 8. Na3 {[%clk
0:02:58.4]} 8... e6 {[%clk 0:02:46]} 9. Nc4 {[%clk 0:02:54.1]} 9... Qc7 {[%clk
0:02:46.4]} 10. Be2 {[%clk 0:02:53.1]} 10... Be7 {[%clk 0:02:45.7]} 11. O-O
{[%clk 0:02:53.1]} 11... O-O {[%clk 0:02:46]} 12. Nb5 {[%clk 0:02:50.5]} 12...
Qb8 {[%clk 0:02:42.3]} 13. Bf3 {[%clk 0:02:49.4]} 13... Nf6 {[%clk 0:02:35.4]}
14. g3 {[%clk 0:02:46.8]} 14... a6 {[%clk 0:02:34.2]} 15. Nd4 {[%clk 0:02:22.4]}
15... Bd7 {[%clk 0:02:22.8]} 16. Nb6 {[%clk 0:02:16.7]} 16... Ra7 {[%clk
0:02:15.9]} 17. Nxd7 {[%clk 0:02:16.3]} 17... Nxd7 {[%clk 0:02:13.7]} 18. Nxe6
{[%clk 0:02:15.9]} 18... fxe6 {[%clk 0:02:08.8]} 19. Qxd7 {[%clk 0:02:12.6]}
19... Rxf3 {[%clk 0:02:05.4]} 20. Bf4 {[%clk 0:02:11.2]} 20... Qf8 {[%clk
0:01:51.2]} 21. Qxe6+ {[%clk 0:02:07.7]} 21... Kh8 {[%clk 0:01:50.4]} 22. Qe4
{[%clk 0:02:03.2]} 22... Rxf4 {[%clk 0:01:39.5]} 23. Qxf4 {[%clk 0:02:03.4]}
23... Qxf4 {[%clk 0:01:36.2]} 24. gxf4 {[%clk 0:02:04.3]} 24... Ra8 {[%clk
0:01:36.6]} 25. Rad1 {[%clk 0:02:00.9]} 25... Rf8 {[%clk 0:01:25.8]} 26. Rfe1
{[%clk 0:01:56.1]} 26... h6 {[%clk 0:01:21.7]} 27. Rd7 {[%clk 0:01:55.1]} 27...
Bc5 {[%clk 0:01:17.3]} 28. Rxb7 {[%clk 0:01:40.9]} 28... Rxf4 {[%clk 0:01:15.3]}
29. Re2 {[%clk 0:01:41.3]} 29... Na5 {[%clk 0:00:53.5]} 30. Rb8+ {[%clk
0:01:24.2]} 30... Kh7 {[%clk 0:00:53.1]} 31. b4 {[%clk 0:01:23.7]} 31... Bd6
{[%clk 0:00:53.6]} 32. Rd8 {[%clk 0:01:19.3]} 32... Nc4 {[%clk 0:00:53.3]} 33.
Re6 {[%clk 0:01:03.3]} 33... Rg4+ {[%clk 0:00:47.1]} 34. Kf1 {[%clk 0:01:00.6]}
34... Bxh2 {[%clk 0:00:45.4]} 35. Rxa6 {[%clk 0:00:59.6]} 35... Ne5 {[%clk
0:00:34.6]} 36. Rd4 {[%clk 0:00:52.4]} 36... Rg1+ {[%clk 0:00:25.4]} 37. Ke2
{[%clk 0:00:52.6]} 37... Ng4 {[%clk 0:00:23.3]} 38. a4 {[%clk 0:00:39.1]} 38...
h5 {[%clk 0:00:22]} 39. Ra5 {[%clk 0:00:26.7]} 39... g6 {[%clk 0:00:18.5]} 40.
Ra7+ {[%clk 0:00:25.8]} 40... Kh6 {[%clk 0:00:18.6]} 41. a5 {[%clk 0:00:26.1]}
41... Rg2 {[%clk 0:00:16.5]} 42. Rf7 {[%clk 0:00:25.8]} 42... Bg3 {[%clk
0:00:17]} 43. a6 {[%clk 0:00:25.5]} 43... Bxf2 {[%clk 0:00:16.2]} 44. Rxg4
{[%clk 0:00:22.5]} 44... Bg3+ {[%clk 0:00:06.5]} 45. Kf1 {[%clk 0:00:21.1]}
45... Ra2 {[%clk 0:00:03.4]} 46. Rxg3 {[%clk 0:00:17.8]} 46... Rxa6 {[%clk
0:00:04.1]} 47. Re3 {[%clk 0:00:16.5]} 47... h4 {[%clk 0:00:04.5]} 48. Rff3
{[%clk 0:00:16.2]} 48... g5 {[%clk 0:00:04.7]} 49. b5 {[%clk 0:00:16.7]} 49...
Ra1+ {[%clk 0:00:03.3]} 50. Re1 {[%clk 0:00:16.2]} 50... Ra2 {[%clk 0:00:04]}
51. b6 {[%clk 0:00:14.6]} 51... Rb2 {[%clk 0:00:04.2]} 52. Re6+ {[%clk
0:00:11.1]} 52... Kh5 {[%clk 0:00:04.6]} 53. Rff6 {[%clk 0:00:10.8]} 53... Kg4
{[%clk 0:00:04.4]} 54. c4 {[%clk 0:00:10.1]} 54... Kg3 {[%clk 0:00:04.4]} 55.
Re3+ {[%clk 0:00:09.7]} 55... Kg4 {[%clk 0:00:05]} 56. Re7 {[%clk 0:00:10.3]}
56... h3 {[%clk 0:00:04.9]} 57. Rh7 {[%clk 0:00:08.6]} 57... h2 {[%clk
0:00:04.8]} 58. b7 {[%clk 0:00:07.3]} 58... Kg3 {[%clk 0:00:05.3]} 59. Rfh6
{[%clk 0:00:02.4]} 59... g4 {[%clk 0:00:02.1]} 60. Rxh2 {[%clk 0:00:02]} 60...
Rb1+ {[%clk 0:00:02.3]} 61. Ke2 {[%clk 0:00:01.9]} 61... Rxb7 {[%clk 0:00:03.1]}
62. Rxb7 {[%clk 0:00:01.6]} 62... Kxh2 {[%clk 0:00:04]} 63. Rg7 {[%clk
0:00:02.2]} 63... g3 {[%clk 0:00:04.1]} 64. c5 {[%clk 0:00:03.1]} 64... g2
{[%clk 0:00:04.3]} 65. c6 {[%clk 0:00:04]} 65... g1=Q {[%clk 0:00:04.8]} 66.
Rh7+ {[%clk 0:00:04.2]} 66... Kg2 {[%clk 0:00:04.3]} 67. Rg7+ {[%clk 0:00:04.8]}
67... Kh1 {[%clk 0:00:05.2]} 68. Rxg1+ {[%clk 0:00:05.2]} 68... Kxg1 {[%clk
0:00:06.1]} 69. c7 {[%clk 0:00:05.9]} 69... Kh1 {[%clk 0:00:07]} 70. c8=Q {[%clk
0:00:06.6]} 70... Kg1 {[%clk 0:00:07.9]} 71. Qg4+ {[%clk 0:00:06.1]} 71... Kh1
{[%clk 0:00:08.8]} 72. Kf2 {[%clk 0:00:06.1]} 72... Kh2 {[%clk 0:00:09.2]} 73.
Qh5# {[%clk 0:00:07]} 1-0

[Event "Late-Titled-Tuesday-Blitz-May-07-2024"]
[Site "Chess.com"]
[Date "2024.05.07"]
[Round "9"]
[White "ploxoi"]
[Black "Cambek64"]
[Result "0-1"]
[WhiteElo "2329"]
[BlackElo "2511"]
[TimeControl "180+1"]
[EndTime "15:48:05 PDT"]
[Termination "Cambek64 won by resignation"]

1. d4 {[%clk 0:03:00.9]} 1... c5 {[%clk 0:02:47.8]} 2. d5 {[%clk 0:02:59]} 2...
e5 {[%clk 0:02:40.6]} 3. c4 {[%clk 0:02:49.5]} 3... d6 {[%clk 0:02:41]} 4. g3
{[%clk 0:02:49.4]} 4... f5 {[%clk 0:02:40.3]} 5. Bg2 {[%clk 0:02:49.6]} 5... Nf6
{[%clk 0:02:40.6]} 6. Nc3 {[%clk 0:02:48.5]} 6... g6 {[%clk 0:02:41.1]} 7. e4
{[%clk 0:02:48.2]} 7... Bg7 {[%clk 0:02:41.1]} 8. Nf3 {[%clk 0:02:42]} 8... O-O
{[%clk 0:02:40.6]} 9. O-O {[%clk 0:02:42.5]} 9... h6 {[%clk 0:02:29.3]} 10. Ne1
{[%clk 0:02:41.4]} 10... Na6 {[%clk 0:02:07.5]} 11. Nd3 {[%clk 0:02:38.3]} 11...
g5 {[%clk 0:02:05.1]} 12. f4 {[%clk 0:02:32.1]} 12... exf4 {[%clk 0:02:02.8]}
13. gxf4 {[%clk 0:02:32.2]} 13... fxe4 {[%clk 0:02:01.2]} 14. Nxe4 {[%clk
0:02:31.5]} 14... Nxe4 {[%clk 0:02:00.5]} 15. Bxe4 {[%clk 0:02:30.8]} 15... Bh3
{[%clk 0:02:00.6]} 16. Bg2 {[%clk 0:02:22.4]} 16... Bd4+ {[%clk 0:01:22.2]} 17.
Kh1 {[%clk 0:02:21.4]} 17... Qd7 {[%clk 0:01:12.4]} 18. Qh5 {[%clk 0:02:16.7]}
18... Bxg2+ {[%clk 0:01:09.8]} 19. Kxg2 {[%clk 0:02:16.3]} 19... Qh7 {[%clk
0:01:08.2]} 20. Nf2 {[%clk 0:02:03.4]} 20... Bxf2 {[%clk 0:00:40.4]} 21. Rxf2
{[%clk 0:02:03.1]} 21... gxf4 {[%clk 0:00:33.9]} 22. Qg4+ {[%clk 0:01:40]} 22...
Kh8 {[%clk 0:00:30.6]} 23. Bd2 {[%clk 0:01:20.1]} 23... Qe4+ {[%clk 0:00:28.2]}
24. Kf1 {[%clk 0:01:13.4]} 24... Rf7 {[%clk 0:00:23.8]} 25. Bc3+ {[%clk
0:01:10.8]} 25... Kh7 {[%clk 0:00:24.1]} 26. Rg2 {[%clk 0:01:05.1]} 26... Qd3+
{[%clk 0:00:12.6]} 27. Kg1 {[%clk 0:01:04.5]} 27... f3 {[%clk 0:00:12.3]} 28.
Rf2 {[%clk 0:00:31.8]} 28... Rg8 {[%clk 0:00:10.5]} 29. Qxg8+ {[%clk 0:00:27]}
29... Kxg8 {[%clk 0:00:10.1]} 30. h3 {[%clk 0:00:25]} 30... Kh7 {[%clk
0:00:10.5]} 31. Kh2 {[%clk 0:00:25.2]} 31... Nb4 {[%clk 0:00:10.9]} 32. Rg1
{[%clk 0:00:24.8]} 32... Qe4 {[%clk 0:00:09.2]} 33. Rg4 {[%clk 0:00:21.4]} 33...
Qf5 {[%clk 0:00:08.3]} 34. Rf1 {[%clk 0:00:16.3]} 34... Nd3 {[%clk 0:00:08.8]}
35. Rfg1 {[%clk 0:00:16.4]} 35... Ne5 {[%clk 0:00:09.3]} 36. R4g3 {[%clk
0:00:13.7]} 36... f2 {[%clk 0:00:09.1]} 37. Rf1 {[%clk 0:00:14.2]} 37... Nf3+
{[%clk 0:00:08.8]} 38. Kh1 {[%clk 0:00:13.6]} 38... Nh4 {[%clk 0:00:08.7]} 39.
Kh2 {[%clk 0:00:10]} 39... b5 {[%clk 0:00:09.2]} 40. cxb5 {[%clk 0:00:09.7]}
40... Qxd5 {[%clk 0:00:08]} 41. Rg4 {[%clk 0:00:09.6]} 41... Rf3 {[%clk
0:00:05.4]} 42. Rg7+ {[%clk 0:00:09.1]} 42... Kh8 {[%clk 0:00:05.2]} 43. Rg5+
{[%clk 0:00:09.6]} 43... Rxc3 {[%clk 0:00:04.4]} 44. Rxd5 {[%clk 0:00:10.2]}
44... Rc2 {[%clk 0:00:03.8]} 45. Rxd6 {[%clk 0:00:08.7]} 45... Nf5 {[%clk
0:00:04.2]} 46. Rd8+ {[%clk 0:00:07.7]} 46... Kg7 {[%clk 0:00:03.3]} 47. Kg2
{[%clk 0:00:06.4]} 47... Ne3+ {[%clk 0:00:01.9]} 48. Kf3 {[%clk 0:00:04.9]}
48... Nxf1 {[%clk 0:00:02.7]} 49. Rd1 {[%clk 0:00:03.7]} 49... Kf6 {[%clk
0:00:03.4]} 50. Rxf1 {[%clk 0:00:03.5]} 50... Rxb2 {[%clk 0:00:03.6]} 51. Rxf2
{[%clk 0:00:04.4]} 51... Rxb5 {[%clk 0:00:03.6]} 52. Re2 {[%clk 0:00:04.5]}
52... Ra5 {[%clk 0:00:04.2]} 53. Kg2 {[%clk 0:00:05.3]} 53... Kf5 {[%clk
0:00:04.1]} 54. Rf2+ {[%clk 0:00:06.2]} 54... Ke4 {[%clk 0:00:03.6]} 55. Re2+
{[%clk 0:00:07.1]} 55... Kd3 {[%clk 0:00:03.6]} 56. Kf3 {[%clk 0:00:07.1]} 56...
c4 {[%clk 0:00:03.8]} 57. Re6 {[%clk 0:00:07.1]} 57... c3 {[%clk 0:00:03.5]} 58.
Rd6+ {[%clk 0:00:07.7]} 58... Kc2 {[%clk 0:00:03.7]} 59. Ke2 {[%clk 0:00:08.2]}
59... Rxa2 {[%clk 0:00:04.1]} 60. Rxh6 {[%clk 0:00:08.5]} 60... Rb2 {[%clk
0:00:04.6]} 61. Rc6 {[%clk 0:00:08.1]} 61... Kb1+ {[%clk 0:00:05]} 62. Ke1
{[%clk 0:00:08.8]} 62... c2 {[%clk 0:00:05.5]} 63. h4 {[%clk 0:00:07.5]} 63...
c1=Q+ {[%clk 0:00:05.4]} 64. Rxc1+ {[%clk 0:00:08.1]} 64... Kxc1 {[%clk
0:00:05.6]} 65. h5 {[%clk 0:00:09]} 65... Rb7 {[%clk 0:00:05.7]} 66. Kf2 {[%clk
0:00:08.4]} 66... Rh7 {[%clk 0:00:06.6]} 67. Kg3 {[%clk 0:00:09.1]} 67... Rxh5
{[%clk 0:00:06.7]} 0-1